[Event "Early-Titled-Tuesday-Blitz-November-28-2023"]
[Site "Chess.com"]
[Date "2023.11.28"]
[Round "8"]
[White "kai_nov"]
[Black "Shivananda1964"]
[Result "0-1"]
[WhiteElo "2232"]
[BlackElo "2395"]
[TimeControl "180+1"]
[EndTime "9:34:54 PST"]
[Termination "Shivananda1964 won by checkmate"]

1. d4 {[%clk 0:03:00.9]} 1... Nf6 {[%clk 0:02:59]} 2. Nc3 {[%clk 0:03:00.8]}
2... b5 {[%clk 0:02:55.1]} 3. Nxb5 {[%clk 0:02:58.9]} 3... c5 {[%clk 0:02:52.2]}
4. dxc5 {[%clk 0:02:54.1]} 4... Qa5+ {[%clk 0:02:30]} 5. Nc3 {[%clk 0:02:49.3]}
5... e6 {[%clk 0:02:26.3]} 6. Nf3 {[%clk 0:02:48.5]} 6... Bxc5 {[%clk 0:02:26]}
7. e3 {[%clk 0:02:44.8]} 7... O-O {[%clk 0:02:24.6]} 8. Bd3 {[%clk 0:02:41.5]}
8... Bb7 {[%clk 0:02:24.7]} 9. O-O {[%clk 0:02:31.9]} 9... Nc6 {[%clk
0:02:20.8]} 10. Bd2 {[%clk 0:02:28.3]} 10... Qc7 {[%clk 0:02:19.6]} 11. e4
{[%clk 0:02:18]} 11... Ng4 {[%clk 0:02:17.7]} 12. h3 {[%clk 0:02:14.2]} 12...
Nge5 {[%clk 0:02:17.2]} 13. Nb5 {[%clk 0:02:02]} 13... Qb8 {[%clk 0:02:16.4]}
14. Nxe5 {[%clk 0:02:01.6]} 14... Nxe5 {[%clk 0:02:16.4]} 15. b4 {[%clk
0:01:55.8]} 15... Bb6 {[%clk 0:02:14]} 16. a4 {[%clk 0:01:49]} 16... a5 {[%clk
0:02:07.7]} 17. bxa5 {[%clk 0:01:46.2]} 17... Bxa5 {[%clk 0:02:06.8]} 18. Bxa5
{[%clk 0:01:45.3]} 18... Rxa5 {[%clk 0:02:06.1]} 19. f4 {[%clk 0:01:41.2]} 19...
Ng6 {[%clk 0:01:56.2]} 20. Qd2 {[%clk 0:01:37.5]} 20... Qa8 {[%clk 0:01:49.2]}
21. Nd6 {[%clk 0:01:17.4]} 21... Bc6 {[%clk 0:01:46.9]} 22. f5 {[%clk
0:01:10.1]} 22... Ne5 {[%clk 0:01:45.3]} 23. f6 {[%clk 0:01:04.6]} 23... Qa7+
{[%clk 0:01:35.8]} 24. Kh1 {[%clk 0:01:02.4]} 24... Qd4 {[%clk 0:01:35.4]} 25.
fxg7 {[%clk 0:00:57.5]} 25... Rb8 {[%clk 0:01:29.7]} 26. Qxa5 {[%clk 0:00:52.9]}
26... Qxd6 {[%clk 0:01:24.1]} 27. Rab1 {[%clk 0:00:44.4]} 27... Ra8 {[%clk
0:01:14]} 28. Qc3 {[%clk 0:00:42.1]} 28... Rxa4 {[%clk 0:01:07.4]} 29. Ra1
{[%clk 0:00:14.4]} 29... Rd4 {[%clk 0:01:03.8]} 30. Rfd1 {[%clk 0:00:08.9]}
30... h5 {[%clk 0:01:01.9]} 31. Rab1 {[%clk 0:00:07.5]} 31... h4 {[%clk
0:00:59.4]} 32. Be2 {[%clk 0:00:07]} 32... Rxd1+ {[%clk 0:00:49.9]} 33. Rxd1
{[%clk 0:00:07.9]} 33... Qb8 {[%clk 0:00:49.2]} 34. Qd4 {[%clk 0:00:07.6]} 34...
Kxg7 {[%clk 0:00:42.3]} 35. c4 {[%clk 0:00:07.7]} 35... f6 {[%clk 0:00:41.4]}
36. c5 {[%clk 0:00:08.1]} 36... Qb3 {[%clk 0:00:40.2]} 37. Qd6 {[%clk
0:00:07.5]} 37... Kf7 {[%clk 0:00:38.5]} 38. Qd2 {[%clk 0:00:06]} 38... Qg3
{[%clk 0:00:37.2]} 39. Qh6 {[%clk 0:00:05.5]} 39... Bxe4 {[%clk 0:00:35.8]} 40.
Qh7+ {[%clk 0:00:05.8]} 40... Bxh7 {[%clk 0:00:34.9]} 41. c6 {[%clk 0:00:05.6]}
41... Be4 {[%clk 0:00:32.9]} 42. Rg1 {[%clk 0:00:04.3]} 42... Qxh3# {[%clk
0:00:32.5]} 0-1

[Event "Early-Titled-Tuesday-Blitz-November-28-2023"]
[Site "Chess.com"]
[Date "2023.11.28"]
[Round "8"]
[White "IM_ArthurDW08"]
[Black "TigrVShlyape"]
[Result "0-1"]
[WhiteElo "2796"]
[BlackElo "2981"]
[TimeControl "180+1"]
[EndTime "9:34:55 PST"]
[Termination "TigrVShlyape won on time"]

1. e4 {[%clk 0:03:00.9]} 1... c5 {[%clk 0:02:58.4]} 2. Nf3 {[%clk 0:03:00.7]}
2... e6 {[%clk 0:02:58.6]} 3. d4 {[%clk 0:03:00.4]} 3... cxd4 {[%clk 0:02:58.9]}
4. Nxd4 {[%clk 0:03:01.3]} 4... a6 {[%clk 0:02:59.2]} 5. h4 {[%clk 0:03:01.4]}
5... Nc6 {[%clk 0:02:46.2]} 6. Nc3 {[%clk 0:02:58.7]} 6... Qc7 {[%clk 0:02:43]}
7. Be3 {[%clk 0:02:49.3]} 7... Nf6 {[%clk 0:02:32.9]} 8. a3 {[%clk 0:02:48.5]}
8... b5 {[%clk 0:02:31.4]} 9. Nxc6 {[%clk 0:02:38.1]} 9... dxc6 {[%clk
0:02:30.8]} 10. h5 {[%clk 0:02:34.9]} 10... e5 {[%clk 0:02:29.3]} 11. h6 {[%clk
0:02:34.4]} 11... g6 {[%clk 0:02:28.3]} 12. Bg5 {[%clk 0:02:17.7]} 12... Be7
{[%clk 0:02:23.7]} 13. Qf3 {[%clk 0:02:17.3]} 13... Ng4 {[%clk 0:02:16.2]} 14.
Bxe7 {[%clk 0:02:05.4]} 14... Qxe7 {[%clk 0:02:16.2]} 15. Be2 {[%clk 0:02:04.1]}
15... O-O {[%clk 0:02:02.1]} 16. Qg3 {[%clk 0:01:53.6]} 16... Nf6 {[%clk
0:02:01.2]} 17. O-O {[%clk 0:01:48]} 17... a5 {[%clk 0:00:54.8]} 18. f4 {[%clk
0:00:26.6]} 18... exf4 {[%clk 0:00:49.7]} 19. Qxf4 {[%clk 0:00:27.5]} 19... Nd7
{[%clk 0:00:42.9]} 20. Bg4 {[%clk 0:00:20.5]} 20... Ne5 {[%clk 0:00:39.3]} 21.
Bxc8 {[%clk 0:00:21.4]} 21... Raxc8 {[%clk 0:00:38.6]} 22. Rad1 {[%clk
0:00:20.9]} 22... Rcd8 {[%clk 0:00:31.9]} 23. Ne2 {[%clk 0:00:15.7]} 23... f6
{[%clk 0:00:21.4]} 24. Nd4 {[%clk 0:00:07.8]} 24... b4 {[%clk 0:00:20.3]} 25.
axb4 {[%clk 0:00:05.4]} 25... axb4 {[%clk 0:00:20.4]} 26. Kh1 {[%clk 0:00:05]}
26... Rd6 {[%clk 0:00:16.4]} 27. Nf5 {[%clk 0:00:03.4]} 27... gxf5 {[%clk
0:00:13.4]} 28. Qg3+ {[%clk 0:00:04]} 28... Kf7 {[%clk 0:00:11.5]} 29. Rxd6
{[%clk 0:00:03.1]} 29... Qxd6 {[%clk 0:00:11.3]} 30. Qg7+ {[%clk 0:00:04]} 30...
Ke8 {[%clk 0:00:11.3]} 31. Ra1 {[%clk 0:00:03.9]} 31... Rf7 {[%clk 0:00:08.5]}
32. Ra8+ {[%clk 0:00:03.7]} 32... Ke7 {[%clk 0:00:07.9]} 33. Ra7+ {[%clk
0:00:04.2]} 33... Nd7 {[%clk 0:00:05.9]} 34. Qg8 {[%clk 0:00:02.4]} 34... fxe4
{[%clk 0:00:06]} 0-1

[Event "Early-Titled-Tuesday-Blitz-November-28-2023"]
[Site "Chess.com"]
[Date "2023.11.28"]
[Round "8"]
[White "Alexsur1981"]
[Black "Hasangatin_Ramil"]
[Result "1-0"]
[WhiteElo "2897"]
[BlackElo "2693"]
[TimeControl "180+1"]
[EndTime "9:34:56 PST"]
[Termination "Alexsur1981 won on time"]

1. e4 {[%clk 0:02:54.4]} 1... c5 {[%clk 0:03:00.3]} 2. Nc3 {[%clk 0:02:54]} 2...
e6 {[%clk 0:03:00.4]} 3. Nf3 {[%clk 0:02:54.1]} 3... Nc6 {[%clk 0:02:58.6]} 4.
Bb5 {[%clk 0:02:54.1]} 4... Nd4 {[%clk 0:02:58.8]} 5. Nxd4 {[%clk 0:02:53.2]}
5... cxd4 {[%clk 0:02:59.7]} 6. Ne2 {[%clk 0:02:53.8]} 6... Qg5 {[%clk
0:02:59.3]} 7. Bd3 {[%clk 0:02:54.4]} 7... Qxg2 {[%clk 0:02:59.2]} 8. Ng3 {[%clk
0:02:55.2]} 8... Qh3 {[%clk 0:02:58.6]} 9. c3 {[%clk 0:02:56]} 9... Bc5 {[%clk
0:02:50.9]} 10. b4 {[%clk 0:02:55.8]} 10... Bb6 {[%clk 0:02:51]} 11. Bb2 {[%clk
0:02:56.5]} 11... Ne7 {[%clk 0:02:45.9]} 12. a4 {[%clk 0:02:52.6]} 12... Ng6
{[%clk 0:02:44.9]} 13. cxd4 {[%clk 0:02:48.3]} 13... Nf4 {[%clk 0:02:37.6]} 14.
Qf3 {[%clk 0:02:45.8]} 14... Qh4 {[%clk 0:02:25.2]} 15. Bc2 {[%clk 0:02:23.8]}
15... d5 {[%clk 0:02:23.5]} 16. e5 {[%clk 0:02:23.1]} 16... Bd7 {[%clk
0:02:22.3]} 17. Bc3 {[%clk 0:02:10.9]} 17... O-O {[%clk 0:01:57.7]} 18. O-O-O
{[%clk 0:02:05.6]} 18... Rac8 {[%clk 0:01:54]} 19. Kb2 {[%clk 0:02:02.6]} 19...
Ng6 {[%clk 0:01:48.3]} 20. Qe3 {[%clk 0:01:52.6]} 20... Rc4 {[%clk 0:01:47.1]}
21. Ne2 {[%clk 0:01:50.9]} 21... Rfc8 {[%clk 0:01:41.6]} 22. Bb3 {[%clk
0:01:49]} 22... R4c6 {[%clk 0:00:51.2]} 23. f4 {[%clk 0:01:42.2]} 23... Ne7
{[%clk 0:00:45.6]} 24. Ng3 {[%clk 0:01:42.2]} 24... Bd8 {[%clk 0:00:43.2]} 25.
b5 {[%clk 0:01:37.3]} 25... R6c7 {[%clk 0:00:42.2]} 26. Rhg1 {[%clk 0:01:36.4]}
26... g6 {[%clk 0:00:41.1]} 27. Rg2 {[%clk 0:01:32.6]} 27... a6 {[%clk
0:00:38.8]} 28. b6 {[%clk 0:01:32.1]} 28... Rc6 {[%clk 0:00:38.7]} 29. a5 {[%clk
0:01:32.7]} 29... Rc4 {[%clk 0:00:37.5]} 30. Ra1 {[%clk 0:01:22]} 30... Bb5
{[%clk 0:00:36.7]} 31. Qf2 {[%clk 0:01:14.4]} 31... R4c6 {[%clk 0:00:36.4]} 32.
f5 {[%clk 0:01:02.2]} 32... exf5 {[%clk 0:00:35.1]} 33. Rag1 {[%clk 0:00:54.6]}
33... f4 {[%clk 0:00:31.1]} 34. Ne2 {[%clk 0:00:42.4]} 34... Qxf2 {[%clk
0:00:30.5]} 35. Rxf2 {[%clk 0:00:43.3]} 35... Bxe2 {[%clk 0:00:25.6]} 36. Rxe2
{[%clk 0:00:44.2]} 36... Rc4 {[%clk 0:00:08.3]} 37. Rf2 {[%clk 0:00:44.5]} 37...
R8c6 {[%clk 0:00:05]} 38. Rxf4 {[%clk 0:00:44.4]} 38... Kg7 {[%clk 0:00:04.9]}
39. Bxc4 {[%clk 0:00:38]} 39... dxc4 {[%clk 0:00:04.5]} 40. Rgf1 {[%clk
0:00:38.3]} 40... Nf5 {[%clk 0:00:01.1]} 41. d5 {[%clk 0:00:37.6]} 41... Rc5
{[%clk 0:00:01.6]} 42. d6 {[%clk 0:00:37.6]} 42... Rd5 {[%clk 0:00:01.1]} 43.
e6+ {[%clk 0:00:34.1]} 1-0

[Event "Early-Titled-Tuesday-Blitz-November-28-2023"]
[Site "Chess.com"]
[Date "2023.11.28"]
[Round "8"]
[White "LUISMIGUELOV"]
[Black "KorolDimitriy75"]
[Result "0-1"]
[WhiteElo "2210"]
[BlackElo "2318"]
[TimeControl "180+1"]
[EndTime "9:34:56 PST"]
[Termination "KorolDimitriy75 won on time"]

1. e4 {[%clk 0:03:00.9]} 1... c5 {[%clk 0:03:00.2]} 2. Nf3 {[%clk 0:02:59.2]}
2... d6 {[%clk 0:03:00.6]} 3. d4 {[%clk 0:02:58.1]} 3... cxd4 {[%clk 0:03:01.5]}
4. Nxd4 {[%clk 0:02:56.7]} 4... Nf6 {[%clk 0:03:02.1]} 5. Be3 {[%clk 0:02:54.9]}
5... g6 {[%clk 0:03:02.5]} 6. Nc3 {[%clk 0:02:44.4]} 6... Bg7 {[%clk 0:03:02.1]}
7. f3 {[%clk 0:02:43.8]} 7... O-O {[%clk 0:03:02.3]} 8. Qd2 {[%clk 0:02:42.6]}
8... Nc6 {[%clk 0:03:02.6]} 9. Bc4 {[%clk 0:02:41.6]} 9... Bd7 {[%clk
0:03:02.4]} 10. O-O-O {[%clk 0:02:40.4]} 10... Qa5 {[%clk 0:03:01.8]} 11. Kb1
{[%clk 0:02:27.2]} 11... Rfc8 {[%clk 0:03:00.8]} 12. Bb3 {[%clk 0:02:23]} 12...
Ne5 {[%clk 0:03:00.6]} 13. h4 {[%clk 0:02:21.9]} 13... b5 {[%clk 0:03:00]} 14.
h5 {[%clk 0:02:20.3]} 14... Nc4 {[%clk 0:02:59.9]} 15. Bxc4 {[%clk 0:02:14.8]}
15... bxc4 {[%clk 0:03:00.8]} 16. hxg6 {[%clk 0:02:13.4]} 16... fxg6 {[%clk
0:03:01.7]} 17. Bh6 {[%clk 0:02:08.8]} 17... Bh8 {[%clk 0:03:00]} 18. Nd5 {[%clk
0:01:48.4]} 18... Qxd2 {[%clk 0:02:44.6]} 19. Nxf6+ {[%clk 0:01:36.1]} 19...
Bxf6 {[%clk 0:02:42.6]} 20. Rxd2 {[%clk 0:01:36]} 20... c3 {[%clk 0:02:40.7]}
21. Rd3 {[%clk 0:01:25.1]} 21... cxb2 {[%clk 0:02:26.1]} 22. Be3 {[%clk
0:01:10.6]} 22... Rc4 {[%clk 0:02:18]} 23. g4 {[%clk 0:01:02.6]} 23... Rac8
{[%clk 0:02:13.9]} 24. Rh2 {[%clk 0:01:01.9]} 24... Ba4 {[%clk 0:01:37]} 25. Nb3
{[%clk 0:00:52]} 25... Rc3 {[%clk 0:01:25.9]} 26. Rxc3 {[%clk 0:00:26.8]} 26...
Rxc3 {[%clk 0:01:25.4]} 27. Bd4 {[%clk 0:00:22.6]} 27... Rxf3 {[%clk 0:01:23]}
28. Bxf6 {[%clk 0:00:21.4]} 28... Rxf6 {[%clk 0:01:21.4]} 29. Kxb2 {[%clk
0:00:20.5]} 29... Rf4 {[%clk 0:01:20.8]} 30. g5 {[%clk 0:00:17.2]} 30... Rxe4
{[%clk 0:01:20.2]} 31. Rg2 {[%clk 0:00:15.2]} 31... Bxb3 {[%clk 0:01:16.7]} 32.
axb3 {[%clk 0:00:14.5]} 32... a5 {[%clk 0:01:15.8]} 33. Rg1 {[%clk 0:00:13.8]}
33... a4 {[%clk 0:01:13.9]} 34. bxa4 {[%clk 0:00:13]} 34... Rxa4 {[%clk
0:01:13.4]} 35. Kc3 {[%clk 0:00:12.8]} 35... Re4 {[%clk 0:01:12.4]} 36. Kd3
{[%clk 0:00:12.4]} 36... Re5 {[%clk 0:01:12.4]} 37. c4 {[%clk 0:00:12.2]} 37...
Kf7 {[%clk 0:01:12.2]} 38. Kd4 {[%clk 0:00:11.9]} 38... Ke6 {[%clk 0:01:12.1]}
39. Rh1 {[%clk 0:00:11.2]} 39... Rxg5 {[%clk 0:01:11.2]} 40. Rxh7 {[%clk
0:00:10.9]} 40... Rg4+ {[%clk 0:01:11.1]} 41. Kd3 {[%clk 0:00:10.2]} 41... Kf6
{[%clk 0:01:11.3]} 42. Rh8 {[%clk 0:00:09.1]} 42... g5 {[%clk 0:01:10.1]} 43.
Rf8+ {[%clk 0:00:09.4]} 43... Ke5 {[%clk 0:01:10.2]} 44. Rg8 {[%clk 0:00:08]}
44... Rg3+ {[%clk 0:01:09.6]} 45. Ke2 {[%clk 0:00:07.8]} 45... Rg4 {[%clk
0:01:04.9]} 46. Kd3 {[%clk 0:00:07.4]} 46... e6 {[%clk 0:01:05.1]} 47. Rg6
{[%clk 0:00:06.2]} 47... Kf5 {[%clk 0:01:03.4]} 48. Rg8 {[%clk 0:00:05.8]} 48...
Rg3+ {[%clk 0:01:03.2]} 49. Kd4 {[%clk 0:00:05.2]} 49... e5+ {[%clk 0:00:59.5]}
50. Kd5 {[%clk 0:00:04.3]} 50... Rd3+ {[%clk 0:00:59.5]} 51. Kc6 {[%clk
0:00:03.8]} 51... Rd4 {[%clk 0:00:59.7]} 52. c5 {[%clk 0:00:03]} 52... dxc5
{[%clk 0:00:59.1]} 53. Kxc5 {[%clk 0:00:03]} 53... g4 {[%clk 0:00:59]} 54. Rf8+
{[%clk 0:00:02.3]} 54... Ke4 {[%clk 0:00:59]} 55. Rg8 {[%clk 0:00:02.1]} 55...
Kf3 {[%clk 0:00:58.7]} 0-1

[Event "Early-Titled-Tuesday-Blitz-November-28-2023"]
[Site "Chess.com"]
[Date "2023.11.28"]
[Round "8"]
[White "Truequitos"]
[Black "Laico"]
[Result "1-0"]
[WhiteElo "2499"]
[BlackElo "2337"]
[TimeControl "180+1"]
[EndTime "9:34:58 PST"]
[Termination "Truequitos won on time"]

1. d4 {[%clk 0:03:00]} 1... e6 {[%clk 0:02:59.1]} 2. Nf3 {[%clk 0:03:00.7]} 2...
f5 {[%clk 0:02:59.3]} 3. d5 {[%clk 0:02:59.7]} 3... b6 {[%clk 0:02:59.8]} 4.
dxe6 {[%clk 0:02:59]} 4... dxe6 {[%clk 0:03:00.7]} 5. Qxd8+ {[%clk 0:02:59.2]}
5... Kxd8 {[%clk 0:03:01.6]} 6. e4 {[%clk 0:02:58.4]} 6... Nf6 {[%clk
0:02:56.9]} 7. exf5 {[%clk 0:02:58.3]} 7... exf5 {[%clk 0:02:57.8]} 8. Bc4
{[%clk 0:02:58.5]} 8... Bd6 {[%clk 0:02:53.6]} 9. O-O {[%clk 0:02:58.1]} 9...
Bb7 {[%clk 0:02:45.4]} 10. Ng5 {[%clk 0:02:58]} 10... Re8 {[%clk 0:02:44.8]} 11.
Nc3 {[%clk 0:02:50.2]} 11... Bb4 {[%clk 0:02:21.1]} 12. Bf4 {[%clk 0:02:47.4]}
12... Bxc3 {[%clk 0:02:19.2]} 13. Rad1+ {[%clk 0:02:45.2]} 13... Nbd7 {[%clk
0:02:15.3]} 14. bxc3 {[%clk 0:02:44.4]} 14... Ne4 {[%clk 0:01:16.3]} 15. Ne6+
{[%clk 0:02:43.4]} 15... Ke7 {[%clk 0:01:01]} 16. Nxc7 {[%clk 0:02:42.8]} 16...
Rac8 {[%clk 0:01:00.4]} 17. Bb5 {[%clk 0:02:36.5]} 17... Red8 {[%clk 0:00:52.2]}
18. f3 {[%clk 0:02:35.9]} 18... Nxc3 {[%clk 0:00:50.8]} 19. Bg5+ {[%clk
0:02:36.4]} 19... Nf6 {[%clk 0:00:48.1]} 20. Rfe1+ {[%clk 0:02:29.5]} 20... Kf7
{[%clk 0:00:47.2]} 21. Rxd8 {[%clk 0:02:06.5]} 21... Rxd8 {[%clk 0:00:48.1]} 22.
Ne6 {[%clk 0:02:06.8]} 22... Rd6 {[%clk 0:00:41.4]} 23. Bc4 {[%clk 0:02:04.4]}
23... Bd5 {[%clk 0:00:38.7]} 24. Bxd5 {[%clk 0:01:56.1]} 24... Rxd5 {[%clk
0:00:39.1]} 25. a3 {[%clk 0:01:39.5]} 25... h6 {[%clk 0:00:31.4]} 26. Bc1 {[%clk
0:01:36.8]} 26... g5 {[%clk 0:00:28]} 27. h4 {[%clk 0:01:32.6]} 27... Nh7 {[%clk
0:00:18.2]} 28. hxg5 {[%clk 0:01:31.4]} 28... hxg5 {[%clk 0:00:19.1]} 29. Nxg5+
{[%clk 0:01:31.5]} 29... Nxg5 {[%clk 0:00:18.1]} 30. Bxg5 {[%clk 0:01:32.4]}
30... Rd7 {[%clk 0:00:13.3]} 31. Bf4 {[%clk 0:01:20.4]} 31... Nb5 {[%clk
0:00:11.7]} 32. a4 {[%clk 0:01:16.2]} 32... Nd4 {[%clk 0:00:10.7]} 33. c3 {[%clk
0:01:10.8]} 33... Ne6 {[%clk 0:00:10.9]} 34. Be5 {[%clk 0:01:11]} 34... Rd2
{[%clk 0:00:10.3]} 35. Ra1 {[%clk 0:01:09.8]} 35... f4 {[%clk 0:00:08.4]} 36. a5
{[%clk 0:01:08.6]} 36... b5 {[%clk 0:00:09]} 37. Rb1 {[%clk 0:01:05.1]} 37... a6
{[%clk 0:00:08.9]} 38. Rb4 {[%clk 0:01:00.1]} 38... Ra2 {[%clk 0:00:07.7]} 39.
Bxf4 {[%clk 0:00:59.3]} 39... Rxa5 {[%clk 0:00:08.1]} 40. Be5 {[%clk 0:00:54.2]}
40... Ra2 {[%clk 0:00:06.5]} 41. Rh4 {[%clk 0:00:53.3]} 41... Re2 {[%clk
0:00:05]} 42. f4 {[%clk 0:00:51]} 42... Kg6 {[%clk 0:00:03.6]} 43. g4 {[%clk
0:00:48.8]} 43... Nc5 {[%clk 0:00:01.9]} 44. Rh5 {[%clk 0:00:42.4]} 44... Ne4
{[%clk 0:00:01.3]} 45. f5+ {[%clk 0:00:41.4]} 45... Kf7 {[%clk 0:00:01.1]} 46.
Rh7+ {[%clk 0:00:41.2]} 46... Kg8 {[%clk 0:00:01.5]} 47. Rg7+ {[%clk 0:00:40.6]}
47... Kf8 {[%clk 0:00:01.4]} 48. f6 {[%clk 0:00:39.5]} 1-0

[Event "Early-Titled-Tuesday-Blitz-November-28-2023"]
[Site "Chess.com"]
[Date "2023.11.28"]
[Round "8"]
[White "liczner"]
[Black "Alexchess1984"]
[Result "0-1"]
[WhiteElo "2871"]
[BlackElo "2721"]
[TimeControl "180+1"]
[EndTime "9:34:59 PST"]
[Termination "Alexchess1984 won on time"]

1. e4 {[%clk 0:03:00.9]} 1... c5 {[%clk 0:02:45.4]} 2. Nf3 {[%clk 0:02:58.8]}
2... Nc6 {[%clk 0:02:45]} 3. d4 {[%clk 0:02:58.2]} 3... cxd4 {[%clk 0:02:43.9]}
4. Nxd4 {[%clk 0:02:59.1]} 4... g6 {[%clk 0:02:44.4]} 5. Be2 {[%clk 0:02:58.4]}
5... Bg7 {[%clk 0:02:42.4]} 6. Nb3 {[%clk 0:02:59]} 6... Nf6 {[%clk 0:02:42.1]}
7. Nc3 {[%clk 0:02:59.2]} 7... O-O {[%clk 0:02:42.5]} 8. O-O {[%clk 0:02:59.9]}
8... d6 {[%clk 0:02:43]} 9. Re1 {[%clk 0:03:00.5]} 9... Rb8 {[%clk 0:02:37.2]}
10. Bf1 {[%clk 0:03:00.7]} 10... a6 {[%clk 0:02:36.9]} 11. a4 {[%clk 0:02:56.7]}
11... Nd7 {[%clk 0:02:30.2]} 12. a5 {[%clk 0:02:55.7]} 12... Nc5 {[%clk
0:02:18.4]} 13. Nxc5 {[%clk 0:02:55.4]} 13... dxc5 {[%clk 0:02:18.4]} 14. Bf4
{[%clk 0:02:54.7]} 14... Be5 {[%clk 0:02:18]} 15. Bxe5 {[%clk 0:02:51.4]} 15...
Nxe5 {[%clk 0:02:18.9]} 16. Qxd8 {[%clk 0:02:45.6]} 16... Rxd8 {[%clk
0:02:18.6]} 17. Na4 {[%clk 0:02:46.5]} 17... c4 {[%clk 0:01:57.4]} 18. Re3
{[%clk 0:02:00.4]} 18... Be6 {[%clk 0:01:49.7]} 19. Nb6 {[%clk 0:01:50]} 19...
Rd2 {[%clk 0:01:46.7]} 20. Rc3 {[%clk 0:01:49.7]} 20... Rbd8 {[%clk 0:01:37.1]}
21. f4 {[%clk 0:01:49.1]} 21... Nc6 {[%clk 0:01:30.5]} 22. Nxc4 {[%clk
0:01:38.6]} 22... Bxc4 {[%clk 0:01:06.4]} 23. Rxc4 {[%clk 0:01:38.5]} 23... Nd4
{[%clk 0:01:04.8]} 24. Bd3 {[%clk 0:01:32.5]} 24... Ne2+ {[%clk 0:01:04.4]} 25.
Kh1 {[%clk 0:00:34]} 25... Nxf4 {[%clk 0:01:03.2]} 26. Bf1 {[%clk 0:00:34.6]}
26... Rf2 {[%clk 0:01:01.9]} 27. g3 {[%clk 0:00:18.8]} 27... Ne6 {[%clk
0:00:58.9]} 28. Bd3 {[%clk 0:00:18.7]} 28... Nd4 {[%clk 0:00:49.9]} 29. Rf1
{[%clk 0:00:14.9]} 29... Rxf1+ {[%clk 0:00:44.4]} 30. Bxf1 {[%clk 0:00:15.8]}
30... Nc6 {[%clk 0:00:43.5]} 31. b4 {[%clk 0:00:13.8]} 31... Rd2 {[%clk
0:00:40.1]} 32. c3 {[%clk 0:00:13]} 32... Ne5 {[%clk 0:00:38.6]} 33. Rc8+ {[%clk
0:00:11.2]} 33... Kg7 {[%clk 0:00:38.6]} 34. h4 {[%clk 0:00:04]} 34... Nf3
{[%clk 0:00:34.2]} 35. Bg2 {[%clk 0:00:04.5]} 35... Rd1+ {[%clk 0:00:34.6]} 36.
Bf1 {[%clk 0:00:05.1]} 36... Rxf1+ {[%clk 0:00:27.6]} 37. Kg2 {[%clk 0:00:05.6]}
37... Nd2 {[%clk 0:00:28.2]} 38. Rd8 {[%clk 0:00:05.3]} 38... Rd1 {[%clk
0:00:24.9]} 39. c4 {[%clk 0:00:02.8]} 39... Kf6 {[%clk 0:00:25.2]} 40. b5 {[%clk
0:00:03.2]} 40... Nxc4 {[%clk 0:00:24.1]} 41. e5+ {[%clk 0:00:02.6]} 41... Kxe5
{[%clk 0:00:23.6]} 0-1

[Event "Early-Titled-Tuesday-Blitz-November-28-2023"]
[Site "Chess.com"]
[Date "2023.11.28"]
[Round "8"]
[White "FARIZA2018"]
[Black "RamonManon0g"]
[Result "1-0"]
[WhiteElo "2538"]
[BlackElo "2350"]
[TimeControl "180+1"]
[EndTime "9:34:59 PST"]
[Termination "FARIZA2018 won by resignation"]

1. e4 {[%clk 0:03:00.9]} 1... c5 {[%clk 0:02:59.5]} 2. Nf3 {[%clk 0:03:01]} 2...
d6 {[%clk 0:02:59.8]} 3. d4 {[%clk 0:03:01]} 3... cxd4 {[%clk 0:03:00.7]} 4.
Nxd4 {[%clk 0:03:01.6]} 4... Nf6 {[%clk 0:03:01]} 5. Nc3 {[%clk 0:03:02.2]} 5...
a6 {[%clk 0:03:01.4]} 6. f4 {[%clk 0:02:56.5]} 6... Nbd7 {[%clk 0:02:58]} 7. Bd3
{[%clk 0:02:53.1]} 7... e5 {[%clk 0:02:57.9]} 8. Nf3 {[%clk 0:02:53.1]} 8... Be7
{[%clk 0:02:51.2]} 9. O-O {[%clk 0:02:52.3]} 9... O-O {[%clk 0:02:51.3]} 10. a4
{[%clk 0:02:49.2]} 10... Qc7 {[%clk 0:02:50.9]} 11. Kh1 {[%clk 0:02:48]} 11...
Nc5 {[%clk 0:02:50.6]} 12. f5 {[%clk 0:02:47.4]} 12... b6 {[%clk 0:02:45.6]} 13.
Bg5 {[%clk 0:02:42.3]} 13... Bb7 {[%clk 0:02:45.5]} 14. Bxf6 {[%clk 0:02:40.4]}
14... Bxf6 {[%clk 0:02:45.1]} 15. Qe2 {[%clk 0:02:37.8]} 15... Rad8 {[%clk
0:02:35.7]} 16. Bc4 {[%clk 0:02:36.7]} 16... Qd7 {[%clk 0:02:04.6]} 17. Bd5
{[%clk 0:02:35.5]} 17... Rc8 {[%clk 0:01:41.9]} 18. Bxb7 {[%clk 0:02:25.2]}
18... Qxb7 {[%clk 0:01:42.8]} 19. Nd5 {[%clk 0:02:24.9]} 19... Nd7 {[%clk
0:01:42.4]} 20. Rad1 {[%clk 0:02:19.5]} 20... Rc5 {[%clk 0:01:35.4]} 21. c3
{[%clk 0:02:17.1]} 21... b5 {[%clk 0:01:31.6]} 22. a5 {[%clk 0:01:54.9]} 22...
Bd8 {[%clk 0:01:08.5]} 23. g4 {[%clk 0:01:14.5]} 23... f6 {[%clk 0:00:57.7]} 24.
b4 {[%clk 0:00:53.7]} 24... Rc4 {[%clk 0:00:55.8]} 25. Nd2 {[%clk 0:00:52.8]}
25... Rc8 {[%clk 0:00:55.2]} 26. Rf3 {[%clk 0:00:47]} 26... Nb8 {[%clk
0:00:54.3]} 27. Nf1 {[%clk 0:00:40.2]} 27... Nc6 {[%clk 0:00:51.4]} 28. Rfd3
{[%clk 0:00:39.6]} 28... Ne7 {[%clk 0:00:48.6]} 29. Nxe7+ {[%clk 0:00:37.4]}
29... Bxe7 {[%clk 0:00:49.5]} 30. Qf3 {[%clk 0:00:37.6]} 30... Rc4 {[%clk
0:00:46.2]} 31. Ne3 {[%clk 0:00:23.8]} 31... Rxe4 {[%clk 0:00:26.8]} 32. Nd5
{[%clk 0:00:23.5]} 32... Rc4 {[%clk 0:00:09.3]} 33. Nxf6+ {[%clk 0:00:23.3]}
33... Bxf6 {[%clk 0:00:09.4]} 34. Qxb7 {[%clk 0:00:23.7]} 34... e4 {[%clk
0:00:09.4]} 35. Re3 {[%clk 0:00:22.9]} 35... Bxc3 {[%clk 0:00:05.5]} 36. Rxe4
{[%clk 0:00:23.3]} 36... Rxb4 {[%clk 0:00:04.8]} 37. Rxd6 {[%clk 0:00:21.2]}
37... Rb1+ {[%clk 0:00:04.3]} 38. Kg2 {[%clk 0:00:21.5]} 38... Rb2+ {[%clk
0:00:05.2]} 39. Kh3 {[%clk 0:00:21.1]} 39... Rb3 {[%clk 0:00:05.8]} 40. Re3
{[%clk 0:00:20.8]} 1-0